bitfinex/quotes_BTCUSD_20260104
["timestamp","ask_amount","ask_price","bid_price","bid_amount"]
[1767542964465,0.04554109,91228.0,91221.0,0.01096238]
[1767542965230,0.04554109,91228.0,91222.0,0.01096226]
[1767542965400,0.04454209,91228.0,91223.0,0.01096214]
[1767542965620,0.04454209,91228.0,91224.0,0.01096202]
[1767542966076,0.0001512,91229.0,91224.0,0.01096202]
[1767542966294,0.0001512,91229.0,91221.0,0.06577384]
[1767542966508,0.000999,91224.0,91223.0,0.05481073]
[1767542966715,0.0001512,91229.0,91223.0,0.06577287]
[1767542966920,0.0001512,91229.0,91223.0,0.01096214]
[1767542967827,0.0001512,91229.0,91222.0,0.06577306]
[1767542968042,0.0001512,91229.0,91223.0,0.01096214]
[1767542968443,0.01111262,91229.0,91220.0,0.0109625]
[1767542968625,0.06591979,91229.0,91221.0,0.01096238]
[1767542968847,0.06592006,91229.0,91221.0,0.01096238]
[1767542969213,0.0001512,91229.0,91222.0,0.01096226]
[1767542969567,0.0001512,91229.0,91223.0,0.01096214]
[1767542969781,0.0001512,91229.0,91222.0,0.06577354]
[1767542970410,0.0001512,91229.0,91223.0,0.01096214]
[1767542972463,0.0001512,91229.0,91224.0,0.01096202]
[1767542972867,0.0001512,91229.0,91224.0,0.06577215]
[1767542973448,0.0001512,91229.0,91224.0,0.01096202]
[1767542973694,0.0001512,91229.0,91222.0,0.01096226]
[1767542974673,0.0001512,91229.0,91223.0,0.01096214]
[1767542975416,0.0001512,91229.0,91222.0,0.06577346]
[1767542976021,0.01111262,91229.0,91222.0,0.01096226]
[1767542976232,0.0001512,91229.0,91222.0,0.01096226]
[1767542976441,0.0001512,91229.0,91223.0,0.01096214]
[1767542976648,0.2191954,91243.0,91221.0,0.05481137]
[1767542976649,0.02196,91239.0,91233.0,0.01096094]
[1767542976872,0.0109595,91245.0,91237.0,0.01096046]
[1767542977097,0.08771741,91246.0,91237.0,0.0548023]
[1767542977323,0.06575793,91244.0,91236.0,0.04805273]
[1767542977566,0.01095962,91244.0,91236.0,0.05901331]
[1767542977994,0.01095974,91243.0,91236.0,0.05901331]
[1767542978227,0.01095974,91243.0,91236.0,0.01096058]
[1767542978704,0.06575779,91244.0,91236.0,0.01096058]
[1767542978942,0.02196,91246.0,91241.0,0.01095998]
[1767542979162,0.02203906,91246.0,91242.0,0.06575918]
[1767542979833,0.02203906,91246.0,91241.0,0.06571451]
[1767542980038,0.02203906,91246.0,91242.0,0.01095986]
[1767542980942,0.02203906,91246.0,91243.0,0.01095974]
[1767542981145,0.02203906,91246.0,91243.0,0.00996074]
[1767542981362,0.02203906,91246.0,91241.0,0.06571423]
[1767542981554,0.02203906,91246.0,91242.0,0.06575858]
[1767542981919,0.02203906,91246.0,91242.0,0.06575902]
[1767542982113,0.02203906,91246.0,91242.0,0.01095986]
[1767542982727,0.02203906,91246.0,91241.0,0.06571423]
[1767542983232,0.02203906,91246.0,91241.0,0.01091466]
[1767542983386,0.02203906,91246.0,91241.0,0.06571408]
[1767542983788,0.02203906,91246.0,91242.0,0.01095986]
[1767542983993,0.02203906,91246.0,91241.0,0.06571408]
[1767542984374,0.02203906,91246.0,91241.0,0.01091466]
[1767542984862,0.02203906,91246.0,91240.0,0.06575945]
[1767542985071,0.01096082,91234.0,91224.0,0.04805273]
[1767542985280,0.01084553,91230.0,91222.0,0.02196]
[1767542985577,0.0109613,91230.0,91221.0,0.01096238]
[1767542985778,0.06576862,91229.0,91221.0,0.06577416]
[1767542986082,0.06576712,91231.0,91223.0,0.01096214]
[1767542986211,0.01096118,91231.0,91224.0,0.01096202]
[1767542986843,0.01096118,91231.0,91223.0,0.06577267]
[1767542987042,0.0109613,91230.0,91221.0,0.06577416]
[1767542987246,0.01096142,91229.0,91222.0,0.01096226]
[1767542987980,0.06576839,91230.0,91222.0,0.06577356]
[1767542988486,0.0109613,91230.0,91223.0,0.01096214]
[1767542989050,0.06576714,91231.0,91223.0,0.01096214]
[1767542990398,0.0109613,91230.0,91222.0,0.06577356]
[1767542990587,0.01096142,91229.0,91222.0,0.01096226]
[1767542991412,0.01096118,91231.0,91229.0,0.000999]
[1767542991630,0.01096118,91231.0,91224.0,0.01096202]
[1767542991790,0.07676469,91235.0,91224.0,0.01096202]
[1767542991791,0.02196,91235.0,91226.0,0.01096178]
[1767542992000,0.02196,91236.0,91233.0,0.05901367]
[1767542992162,0.01095986,91242.0,91235.0,0.0008214]
[1767542992363,0.01095998,91241.0,91235.0,0.0006438]
[1767542992594,0.0109601,91240.0,91236.0,0.04671141]
[1767542993124,0.0109601,91240.0,91233.0,0.01096094]
[1767542994007,0.06576069,91240.0,91233.0,0.01096094]
[1767542994327,0.06576069,91240.0,91232.0,0.40252325]
[1767542995149,0.06576069,91240.0,91233.0,0.01096094]
[1767542995463,0.06576006,91241.0,91232.0,0.45732857]
[1767542996055,0.0109601,91240.0,91233.0,0.01096094]
[1767542996974,0.01096022,91239.0,91232.0,0.45732857]
[1767542997175,0.01096022,91239.0,91232.0,0.11381911]
[1767542997354,0.0109601,91240.0,91233.0,0.01096094]
[1767542999556,0.01095998,91241.0,91234.0,0.01096082]
[1767542999757,0.0109601,91240.0,91233.0,0.06576561]
[1767543000173,0.0109601,91240.0,91232.0,0.11381911]
[1767543000615,0.0109601,91240.0,91233.0,0.01096094]
[1767543000823,0.01095998,91241.0,91234.0,0.01096082]
[1767543000979,0.02196,91242.0,91240.0,0.000643]
[1767543001187,0.02196,91242.0,91240.0,0.00059768]
[1767543001385,0.03291986,91242.0,91235.0,0.0657639]
[1767543001595,0.06575922,91242.0,91235.0,0.0109607]
[1767543001820,0.01095986,91242.0,91235.0,0.0109607]
[1767543002019,0.08771867,91243.0,91235.0,0.0657642]
[1767543003113,0.06575953,91242.0,91234.0,0.06576482]
[1767543003781,0.08771867,91243.0,91236.0,0.01096058]
[1767543003919,0.01095986,91242.0,91235.0,0.0109607]
[1767543004518,0.01095998,91241.0,91234.0,0.01096082]
[1767543004870,0.01095986,91242.0,91235.0,0.0109607]
[1767543005622,0.06575947,91242.0,91234.0,0.01096082]
[1767543006124,0.0109601,91240.0,91233.0,0.01096094]
[1767543006765,0.01096022,91239.0,91232.0,0.01096106]
[1767543007063,0.0109601,91240.0,91233.0,0.01096094]
[1767543007366,0.06575993,91241.0,91234.0,0.01096082]
[1767543007611,0.0109601,91240.0,91233.0,0.01096094]
[1767543007806,0.06575993,91241.0,91234.0,0.01096082]
[1767543008102,0.06575993,91241.0,91233.0,0.06576542]
[1767543008532,0.01095998,91241.0,91234.0,0.01096082]
[1767543008675,0.06575928,91242.0,91235.0,0.0109607]
[1767543008887,0.01095998,91241.0,91234.0,0.06576468]
[1767543009102,0.01095998,91241.0,91234.0,0.01096082]
[1767543009616,0.06575937,91242.0,91234.0,0.06576492]
[1767543010140,0.01095986,91242.0,91235.0,0.0109607]
[1767543010363,0.07675922,91243.0,91232.0,0.01096106]
[1767543010364,0.07917995,91243.0,91232.0,0.01096106]
[1767543010549,0.000401,91235.0,91232.0,0.01096106]
[1767543010849,0.000401,91235.0,91231.0,0.01096118]
[1767543011054,0.06576002,91241.0,91234.0,0.01096082]
[1767543011218,0.0109601,91240.0,91233.0,0.01096094]
[1767543011558,0.0109601,91240.0,91232.0,0.06576604]
[1767543012121,0.01096022,91239.0,91232.0,0.01096106]
[1767543012860,0.05722019,91241.0,91234.0,0.01096082]
[1767543013213,0.04626021,91241.0,91235.0,0.0109607]
[1767543013445,0.04626021,91241.0,91234.0,0.01096082]
[1767543013880,0.04626021,91241.0,91235.0,0.0109607]
[1767543014680,0.02196,91243.0,91237.0,0.01096046]
[1767543014971,0.04626021,91242.0,91241.0,0.000598]
[1767543015181,0.04617138,91242.0,91241.0,0.000598]
[1767543015412,0.05713124,91242.0,91235.0,0.0109607]
[1767543016462,0.05713124,91242.0,91234.0,0.06576441]
[1767543016463,0.01095998,91241.0,91234.0,0.06576441]
[1767543017359,0.05713124,91242.0,91235.0,0.0109607]
[1767543017761,0.01095986,91242.0,91235.0,0.0109607]
[1767543018545,0.06575924,91242.0,91235.0,0.0109607]
[1767543018924,0.01095986,91242.0,91235.0,0.0109607]
[1767543021682,0.01095986,91242.0,91236.0,0.01096058]
[1767543021889,0.01095986,91242.0,91235.0,0.0109607]
[1767543022573,0.01087103,91242.0,91235.0,0.0109607]
[1767543023551,0.01087103,91242.0,91236.0,0.01096058]
[1767543023750,0.01087103,91242.0,91235.0,0.06576419]
[1767543024524,0.01087103,91242.0,91235.0,0.06571887]
[1767543025025,0.13388987,91243.0,91236.0,0.01096058]
[1767543025329,0.02196,91243.0,91242.0,0.000598]
[1767543025548,0.03291974,91243.0,91236.0,0.0657635]
[1767543026526,0.02196,91243.0,91237.0,0.01096046]
[1767543027151,0.03291974,91243.0,91237.0,0.01096046]
[1767543027747,0.02196,91243.0,91237.0,0.01096046]
[1767543028599,0.02196,91243.0,91238.0,0.04765667]
[1767543030229,0.000446,91238.0,91236.0,0.04985784]
[1767543030652,0.0877186,91243.0,91236.0,0.04985784]
[1767543030856,0.01095986,91242.0,91236.0,0.06081842]
[1767543031058,0.01095986,91242.0,91236.0,0.04985784]
[1767543032099,0.01095986,91242.0,91236.0,0.04981252]
[1767543032615,0.01095986,91242.0,91236.0,0.0607731]
[1767543033119,0.01095998,91241.0,91236.0,0.04981252]
[1767543033325,0.06575965,91242.0,91236.0,0.04936652]
[1767543033632,0.01095998,91241.0,91236.0,0.04936652]
[1767543034256,0.06575965,91242.0,91236.0,0.04936652]
[1767543035059,0.06575965,91242.0,91236.0,0.04133496]
[1767543035272,0.01095998,91241.0,91236.0,0.04133496]
[1767543035447,0.0109607,91235.0,91226.0,0.02196]
[1767543035599,0.0657681,91230.0,91220.0,0.05481254]
[1767543035806,0.05480957,91225.0,91218.0,0.04588483]
[1767543036026,0.06577147,91225.0,91218.0,0.04588483]
[1767543036227,0.0109619,91225.0,91218.0,0.05684757]
[1767543036408,0.06577074,91226.0,91219.0,0.01096262]
[1767543036787,0.06577052,91227.0,91220.0,0.0109625]
[1767543037609,0.06577052,91227.0,91219.0,0.06577551]
[1767543037842,0.01096178,91226.0,91220.0,0.0109625]
[1767543038251,0.0109613,91230.0,91226.0,0.000999]
[1767543038485,0.01096154,91228.0,91221.0,0.01096238]
[1767543038650,0.01096178,91226.0,91219.0,0.06577549]
[1767543038852,0.06577075,91226.0,91218.0,0.3544722]
[1767543039123,0.01096178,91226.0,91218.0,0.06577626]
[1767543039491,0.01096178,91226.0,91219.0,0.01096262]
[1767543039974,0.0877305,91227.0,91220.0,0.0109625]
[1767543040207,0.01096178,91226.0,91219.0,0.06577575]
[1767543040419,0.01096214,91223.0,91216.0,0.01096298]
[1767543040572,0.0109619,91225.0,91218.0,0.01096274]
[1767543041029,0.01096202,91224.0,91216.0,0.01096298]
[1767543041345,0.01096202,91224.0,91217.0,0.01096286]
[1767543041633,0.01096298,91216.0,91210.0,0.38939429]
[1767543041930,0.01096286,91217.0,91211.0,0.04588483]
[1767543042105,0.06577619,91219.0,91211.0,0.05684841]
[1767543042516,0.01096262,91219.0,91212.0,0.01096346]
[1767543042882,0.01096262,91219.0,91212.0,0.01104237]
[1767543043391,0.06577594,91219.0,91212.0,7.891e-05]
[1767543043597,0.06577594,91219.0,91212.0,0.01104237]
[1767543043821,0.01096274,91218.0,91212.0,7.891e-05]
[1767543045224,0.01096274,91218.0,91212.0,0.01104237]
[1767543045474,0.01096274,91218.0,91212.0,7.891e-05]
[1767543045884,0.05481332,91219.0,91212.0,0.01104237]
[1767543046192,0.01096274,91218.0,91212.0,7.891e-05]
[1767543046378,0.06577587,91219.0,91212.0,0.01104237]
[1767543046582,0.01096274,91218.0,91212.0,7.891e-05]
[1767543047539,0.05481674,91213.0,91212.0,7.891e-05]
[1767543047982,0.05481674,91213.0,91212.0,3.45e-05]
[1767543048139,0.05481614,91214.0,91212.0,3.45e-05]
[1767543048543,0.07677674,91213.0,91212.0,3.45e-05]
[1767543049179,0.12507382,91213.0,91212.0,3.45e-05]
[1767543050339,0.12507382,91213.0,91197.0,0.0001512]
[1767543050340,0.01096371,91210.0,91197.0,0.0001512]
[1767543050542,0.07025708,91213.0,91197.0,0.0001512]
[1767543050543,0.01096383,91209.0,91197.0,0.05493217]
[1767543050839,0.01096443,91204.0,91197.0,0.00010588]
[1767543051047,0.01096455,91203.0,91197.0,0.00010588]
[1767543051184,0.06578664,91204.0,91197.0,0.01107115]
[1767543051387,0.01096455,91203.0,91197.0,0.00010588]
[1767543051833,0.06578737,91203.0,91197.0,0.00010588]
[1767543052149,0.01096467,91202.0,91197.0,0.00010588]
[1767543053132,0.01096479,91201.0,91197.0,0.00010588]
[1767543053328,0.01096467,91202.0,91197.0,0.00010588]
[1767543053528,0.06578857,91202.0,91197.0,0.00010588]
[1767543053657,0.01096467,91202.0,91197.0,0.00010588]
[1767543053871,0.01096479,91201.0,91197.0,0.00010588]
[1767543054111,0.06578805,91202.0,91197.0,0.00010588]
[1767543054529,0.01096479,91201.0,91197.0,0.00010588]
[1767543054734,0.01096479,91201.0,91197.0,6.148e-05]
[1767543054935,0.01096431,91205.0,91201.0,0.000999]
[1767543055095,0.01096431,91205.0,91197.0,0.05488734]
[1767543055096,0.01096443,91204.0,91197.0,0.05488734]
[1767543055298,0.06578672,91204.0,91197.0,6.148e-05]
[1767543055504,0.01096443,91204.0,91197.0,0.01102675]
[1767543055709,0.01096455,91203.0,91197.0,0.01102675]
[1767543055908,0.06578668,91204.0,91203.0,0.000999]
[1767543056386,0.06578668,91204.0,91197.0,0.01102675]
[1767543056815,0.01096455,91203.0,91197.0,6.148e-05]
[1767543057221,0.06578668,91204.0,91197.0,0.01102675]
[1767543057900,0.01096455,91203.0,91197.0,6.148e-05]
[1767543058162,0.02196,91206.0,91203.0,0.000999]
[1767543058163,0.03292419,91206.0,91203.0,0.000999]
[1767543058501,0.03292419,91206.0,91199.0,0.01096503]
[1767543059253,0.01096443,91204.0,91197.0,0.06585254]
[1767543059486,0.06578605,91205.0,91197.0,0.01102675]
[1767543059689,0.08774528,91206.0,91199.0,0.01096503]
[1767543059841,0.01096443,91204.0,91197.0,6.148e-05]
[1767543060047,0.06578741,91203.0,91197.0,6.148e-05]
[1767543060248,0.01096479,91201.0,91197.0,6.148e-05]
[1767543060503,0.06578856,91202.0,91197.0,6.148e-05]
[1767543060946,0.01096479,91201.0,91197.0,6.148e-05]
[1767543061146,0.01096491,91200.0,91197.0,6.148e-05]
[1767543061372,0.05482566,91199.0,91197.0,6.148e-05]
[1767543061693,0.01096479,91201.0,91197.0,6.148e-05]
[1767543062496,0.06578849,91202.0,91197.0,6.148e-05]
[1767543063143,0.01096479,91201.0,91197.0,6.148e-05]
[1767543063861,0.01096467,91202.0,91197.0,6.148e-05]
[1767543064062,0.06578771,91204.0,91197.0,6.148e-05]
[1767543064296,0.0657866,91204.0,91202.0,0.000999]
[1767543064489,0.06578705,91205.0,91202.0,0.000999]
[1767543064688,0.02196,91206.0,91202.0,0.01096467]
[1767543064852,0.02196,91206.0,91201.0,0.06578828]
[1767543065218,0.02196,91206.0,91201.0,0.06578874]
[1767543065503,0.06578059,91213.0,91206.0,0.000999]
[1767543065704,0.03292346,91212.0,91204.0,0.06578608]
[1767543065883,0.01096358,91211.0,91203.0,0.01096455]
[1767543066044,0.06578202,91211.0,91203.0,0.01096455]
[1767543066450,0.05482037,91207.0,91199.0,0.05482493]
[1767543066779,0.01096419,91206.0,91199.0,0.01096503]
[1767543066995,0.06578491,91207.0,91200.0,0.01096491]
[1767543067568,0.01096419,91206.0,91200.0,0.01096491]
[1767543067769,0.03292419,91206.0,91199.0,0.06578999]
[1767543068002,0.01096431,91205.0,91198.0,0.04625928]
[1767543068238,0.01096431,91205.0,91199.0,0.01096503]
[1767543068444,0.08774535,91206.0,91199.0,0.01096503]
[1767543068802,0.02196,91206.0,91199.0,0.06578982]
[1767543068975,0.03292419,91206.0,91200.0,0.01096491]
[1767543069174,0.03292419,91206.0,91199.0,0.06578982]
[1767543069389,0.0548217,91205.0,91197.0,6.148e-05]
[1767543069605,0.03292419,91206.0,91197.0,0.06585301]
[1767543069807,0.01096431,91205.0,91198.0,0.01096515]
[1767543070023,0.06578587,91205.0,91197.0,0.01102675]
[1767543070225,0.06578587,91205.0,91198.0,0.01096515]
[1767543070767,0.01096431,91205.0,91198.0,0.06579085]
[1767543071138,0.02196,91206.0,91200.0,0.01096491]
[1767543071341,0.03292419,91206.0,91199.0,0.06578973]
[1767543071537,0.03292419,91206.0,91199.0,0.06579015]
[1767543071740,0.02196,91206.0,91199.0,0.06579015]
[1767543072140,0.08774517,91206.0,91198.0,0.06579085]
[1767543072461,0.03292419,91206.0,91199.0,0.01096503]
[1767543072659,0.01096431,91205.0,91198.0,0.06579085]
[1767543072892,0.0877452,91206.0,91199.0,0.01096503]
[1767543073097,0.02196,91206.0,91200.0,0.01096491]
[1767543073629,0.03292419,91206.0,91199.0,0.01096503]
[1767543073936,0.02196,91206.0,91200.0,0.01096491]
[1767543074129,0.020961,91206.0,91203.0,0.01096455]
[1767543074330,0.020961,91206.0,91201.0,0.11204748]
[1767543074537,0.020961,91206.0,91201.0,0.05722407]
[1767543074797,0.020961,91206.0,91201.0,0.112048]
[1767543074934,0.020961,91206.0,91202.0,0.01096467]
[1767543075135,0.020961,91206.0,91203.0,0.01096455]
[1767543075393,0.020961,91206.0,91203.0,0.0657868]
[1767543075572,0.020961,91206.0,91202.0,0.06578796]
[1767543076223,0.020961,91206.0,91201.0,0.11204749]
[1767543076581,0.020961,91206.0,91202.0,0.01096467]
[1767543076963,0.020961,91206.0,91201.0,0.11204749]
[1767543077739,0.020961,91206.0,91202.0,0.01096467]
[1767543078415,0.020961,91206.0,91201.0,0.01096479]
[1767543079382,0.020961,91206.0,91203.0,0.01096455]
[1767543079502,0.020961,91206.0,91202.0,0.06578787]
[1767543080459,0.020961,91206.0,91203.0,0.01096455]
[1767543080757,0.02196,91207.0,91205.0,0.01096431]
[1767543080960,0.02196,91207.0,91203.0,0.06578686]
[1767543081162,0.02196,91207.0,91204.0,0.01096443]
[1767543081667,0.01096286,91217.0,91207.0,0.06482014]
[1767543081895,0.02196,91211.0,91209.0,0.06578287]
[1767543082046,0.06577775,91217.0,91209.0,0.06578287]
[1767543082047,0.02196,91212.0,91209.0,0.06578287]
[1767543082628,0.04686952,91218.0,91211.0,0.01096358]
[1767543082836,0.04686952,91223.0,91219.0,0.01096262]
[1767543083273,0.02196,91225.0,91220.0,0.0657745]
[1767543083481,0.02196,91225.0,91219.0,0.06577465]
[1767543083682,0.02196,91225.0,91220.0,0.0109625]
[1767543084178,0.02196,91225.0,91220.0,0.06577489]
[1767543084563,0.02202718,91225.0,91221.0,0.01096238]
[1767543084770,0.02202718,91225.0,91220.0,0.0109625]
[1767543085110,0.02202718,91225.0,91219.0,0.06577465]
[1767543086044,6.718e-05,91225.0,91222.0,0.01096226]
[1767543086228,0.02196,91226.0,91221.0,0.01096238]
[1767543086433,0.02196,91226.0,91221.0,0.06577402]
[1767543086985,0.02196,91226.0,91222.0,0.01096226]
[1767543087181,0.02196,91226.0,91221.0,0.06577402]
[1767543087559,0.01096154,91228.0,91221.0,0.06577402]
[1767543087759,0.02196,91226.0,91221.0,0.06577402]
[1767543087947,0.03292178,91226.0,91220.0,0.0109625]
[1767543088326,0.02196,91226.0,91220.0,0.0109625]
[1767543088856,0.02196,91226.0,91221.0,0.01096238]
[1767543089329,0.02196,91226.0,91220.0,0.06577479]
[1767543089506,0.02196,91226.0,91221.0,0.01096238]
[1767543089659,0.02196,91226.0,91222.0,0.01096226]
[1767543090762,0.02196,91226.0,91220.0,0.06577479]
[1767543090996,0.02196,91226.0,91221.0,0.01096238]
[1767543091488,0.02196,91226.0,91220.0,0.0109625]
[1767543091687,0.02196,91226.0,91221.0,0.01096238]
[1767543092252,0.02196,91226.0,91222.0,0.01096226]
[1767543093106,0.02196,91227.0,91223.0,0.01096214]
[1767543093628,0.02196,91227.0,91222.0,0.06577353]
[1767543093836,0.02196,91227.0,91223.0,0.01096214]
[1767543093979,0.02196,91227.0,91222.0,0.06577353]
[1767543094383,0.02196,91227.0,91223.0,0.01096214]
[1767543095739,0.02196,91227.0,91222.0,0.06577353]
[1767543096146,0.02196,91227.0,91223.0,0.01096214]
[1767543097147,0.000999,91223.0,91221.0,0.01096238]
[1767543097333,0.02196,91227.0,91222.0,0.01096226]
[1767543097527,0.02196,91227.0,91221.0,0.06577427]
[1767543097725,0.02196,91227.0,91221.0,0.01096238]
[1767543098107,0.02196,91227.0,91222.0,0.01096226]
[1767543098450,0.03292166,91227.0,91220.0,0.06577501]
[1767543098607,0.01096274,91218.0,91211.0,0.01096358]
[1767543098818,0.05481245,91221.0,91220.0,0.00038381]
[1767543099415,0.01096226,91222.0,91220.0,0.00038381]
[1767543099613,0.01096226,91222.0,91215.0,0.05481533]
[1767543099834,0.01096238,91221.0,91213.0,0.05481618]
[1767543100045,0.01096238,91221.0,91215.0,0.0109631]
[1767543100252,0.06577396,91222.0,91215.0,0.0657786]
[1767543100655,0.01096226,91222.0,91215.0,0.0657786]
[1767543101485,0.06577289,91223.0,91216.0,0.01096298]
[1767543103693,0.01096226,91222.0,91215.0,0.0657786]
[1767543103892,0.01096226,91222.0,91216.0,0.01096298]
[1767543104392,0.02196,91228.0,91224.0,0.06577215]
[1767543104606,0.02196,91228.0,91225.0,0.0109619]
[1767543105106,0.02196,91228.0,91222.0,0.05481118]
[1767543105309,0.02196,91228.0,91224.0,0.01096202]
[1767543105522,0.02196,91228.0,91223.0,0.0657728]
[1767543105719,0.02196,91228.0,91223.0,0.01096214]
[1767543106417,0.01096166,91227.0,91220.0,0.0109625]
[1767543106617,0.01096166,91227.0,91221.0,0.01096238]
[1767543107315,0.01096178,91226.0,91220.0,0.0109625]
[1767543107483,0.06577019,91227.0,91220.0,0.0109625]
[1767543107682,8.972e-05,91229.0,91227.0,0.000999]
[1767543107946,0.05480773,91228.0,91227.0,0.00095369]
[1767543108239,0.06585832,91229.0,91222.0,0.01096226]
[1767543108626,0.01105114,91229.0,91223.0,0.01096214]
[1767543111159,8.972e-05,91229.0,91224.0,0.01096202]
[1767543111339,0.02196,91230.0,91229.0,0.00086328]
[1767543111555,0.02206814,91230.0,91229.0,0.00086328]
[1767543112099,0.02206814,91230.0,91224.0,0.06577196]
[1767543113486,0.03302944,91230.0,91224.0,0.01096202]
[1767543113681,0.01096142,91229.0,91223.0,0.06577277]
[1767543114088,0.01096142,91229.0,91223.0,0.01096214]
[1767543114319,0.000135,91223.0,91218.0,0.06577635]
[1767543114496,0.000135,91223.0,91220.0,0.06577495]
[1767543114744,0.06577006,91227.0,91220.0,0.06577495]
[1767543114948,0.06577006,91227.0,91221.0,0.01096238]
[1767543115279,0.06577006,91227.0,91220.0,0.06577495]
[1767543115479,0.06577006,91227.0,91221.0,0.01096238]
[1767543115716,0.01096178,91226.0,91220.0,0.06577495]
[1767543115983,0.06577077,91226.0,91219.0,0.06577528]
[1767543116183,0.01096178,91226.0,91219.0,0.06577528]
[1767543116406,0.06576999,91227.0,91220.0,0.06577458]
[1767543116956,0.0109619,91225.0,91219.0,0.06577528]
[1767543117094,0.06577074,91226.0,91220.0,0.0109625]
[1767543117635,0.000135,91220.0,91218.0,0.06577643]
[1767543118133,0.06577074,91226.0,91218.0,0.06577643]
[1767543118335,0.0109619,91225.0,91219.0,0.01096262]
[1767543119752,0.06577216,91224.0,91217.0,0.06577616]
[1767543120048,0.000135,91219.0,91218.0,0.01096274]
[1767543120484,0.0109619,91225.0,91219.0,0.01096262]
[1767543120694,0.01096262,91219.0,91211.0,0.01096358]
[1767543120843,0.01096274,91218.0,91211.0,0.01096358]
[1767543121095,0.01096286,91217.0,91211.0,0.01096358]
[1767543121291,0.06577667,91218.0,91212.0,0.01096346]
[1767543121462,0.01096274,91218.0,91211.0,0.06578138]
[1767543121663,0.0109625,91220.0,91214.0,0.01096322]
[1767543121899,0.06577446,91221.0,91215.0,0.0109631]
[1767543122486,0.01096262,91219.0,91213.0,0.06577972]
[1767543122863,0.0109625,91220.0,91214.0,0.01096322]
[1767543123870,0.01096274,91218.0,91212.0,0.06577972]
[1767543124271,0.06577435,91221.0,91214.0,0.01096322]
[1767543124682,0.06577435,91221.0,91215.0,0.0109631]
[1767543124988,0.01096238,91221.0,91215.0,0.0109631]
[1767543127294,0.02196,91222.0,91221.0,0.000864]
[1767543127722,0.02196,91222.0,91220.0,0.10189257]
[1767543127906,0.02196,91222.0,91221.0,0.05481194]
[1767543128074,0.02196,91222.0,91220.0,0.10189257]
[1767543128488,0.021096,91222.0,91220.0,0.10189257]
[1767543128694,0.021096,91222.0,91220.0,0.04708005]
[1767543128893,0.021096,91222.0,91219.0,0.06577575]
[1767543129095,0.021096,91222.0,91219.0,0.01096262]
[1767543129872,0.021096,91222.0,91218.0,0.06577593]
[1767543130299,0.021096,91222.0,91219.0,0.01096262]
[1767543130509,0.021096,91222.0,91218.0,0.06577593]
[1767543130905,0.021096,91222.0,91218.0,0.01096274]
[1767543131059,0.021096,91222.0,91219.0,0.01096262]
[1767543131472,0.021096,91222.0,91218.0,0.0657764]
[1767543132013,0.021096,91222.0,91217.0,0.11285618]
[1767543133541,0.03205826,91222.0,91217.0,0.05804291]
[1767543133697,0.021096,91222.0,91218.0,0.01096274]
[1767543134138,0.021096,91222.0,91217.0,0.04708005]
[1767543134305,0.021096,91222.0,91215.0,0.0109631]
[1767543134306,0.000999,91218.0,91215.0,0.05804315]
[1767543134529,0.021096,91222.0,91218.0,0.00046734]
[1767543134913,0.03205826,91222.0,91218.0,0.00046734]
[1767543135129,0.01096238,91221.0,91218.0,3.4e-07]
[1767543135326,0.08686965,91222.0,91218.0,3.4e-07]
[1767543135729,0.01096238,91221.0,91218.0,3.4e-07]
[1767543136795,0.08686965,91222.0,91218.0,3.4e-07]
[1767543136999,0.021096,91222.0,91218.0,3.4e-07]
[1767543137129,0.03205826,91222.0,91218.0,3.4e-07]
[1767543137346,0.021096,91222.0,91218.0,3.4e-07]
[1767543139631,0.021096,91222.0,91219.0,0.01096262]
[1767543140047,0.021096,91222.0,91219.0,0.06577574]
[1767543141687,0.021096,91222.0,91218.0,0.06577638]
[1767543142349,0.021096,91222.0,91219.0,0.01096262]
[1767543142583,0.021096,91222.0,91218.0,0.06577638]
[1767543143818,0.021096,91222.0,91219.0,0.01096262]
[1767543144020,0.021096,91222.0,91218.0,0.06577638]
[1767543144963,0.021096,91222.0,91219.0,0.0657757]
[1767543146467,0.021096,91222.0,91219.0,0.01096262]
[1767543151773,0.021096,91222.0,91218.0,0.06577638]
[1767543152021,0.021096,91222.0,91219.0,0.01096262]
[1767543153380,0.021096,91222.0,91219.0,0.06577557]
[1767543154016,0.021096,91222.0,91221.0,0.05481194]
[1767543154226,0.021096,91222.0,91220.0,0.05481203]
[1767543154815,0.021096,91222.0,91221.0,0.05481194]
[1767543155032,0.021096,91222.0,91220.0,0.05481203]
[1767543159098,0.021096,91222.0,91221.0,0.05481194]
[1767543163571,0.021096,91222.0,91220.0,0.05481203]
[1767543164366,0.021096,91222.0,91221.0,0.05481194]
[1767543164799,0.021096,91222.0,91220.0,0.05481203]
[1767543165888,0.021096,91222.0,91217.0,0.18864069]
[1767543166183,0.021096,91222.0,91220.0,0.05481207]
[1767543166747,0.000532,91220.0,91219.0,0.06577575]
[1767543167158,0.021096,91222.0,91220.0,0.05481239]
[1767543168806,0.020629,91222.0,91221.0,0.05481194]
[1767543169931,0.0657697,91228.0,91222.0,0.06577351]
[1767543171188,0.06587615,91230.0,91223.0,0.05481073]
[1767543171373,0.02196,91227.0,91224.0,0.01096202]
[1767543172029,0.02196,91227.0,91223.0,0.06577287]
[1767543172620,0.02196,91230.0,91227.0,0.01096166]
[1767543172840,0.02196,91230.0,91228.0,0.05480722]
[1767543173062,0.02196,91230.0,91228.0,0.05380822]
[1767543173964,0.02196,91230.0,91227.0,0.06576989]
[1767543174187,0.02196,91230.0,91227.0,0.06576982]
[1767543174414,0.02196,91230.0,91227.0,0.01096166]
[1767543174863,0.02196,91230.0,91227.0,0.06576977]
[1767543175036,0.02196,91230.0,91227.0,0.06576993]
[1767543176336,0.02196,91230.0,91225.0,0.06577093]
[1767543176544,0.02196,91230.0,91226.0,0.06577065]
[1767543176721,0.02196,91230.0,91226.0,0.01096178]
[1767543178161,0.02196,91230.0,91225.0,0.06577093]
[1767543178548,0.08772825,91230.0,91224.0,0.01096202]
[1767543178743,0.08772825,91230.0,91225.0,0.0109619]
[1767543178960,0.08772825,91230.0,91225.0,0.01087309]
[1767543179829,0.0329213,91230.0,91225.0,0.01087309]
[1767543180596,0.0329213,91230.0,91225.0,0.06568256]
[1767543180801,0.02196,91230.0,91227.0,0.01096166]
[1767543181161,0.02196,91230.0,91227.0,0.0647621]
[1767543181584,0.02196,91230.0,91227.0,0.00995414]
[1767543182165,0.02196,91230.0,91227.0,0.06476189]
[1767543182571,0.02196,91230.0,91226.0,0.06577063]
[1767543182778,0.02196,91230.0,91227.0,0.01096166]
[1767543185041,0.02196,91230.0,91226.0,0.06577017]
[1767543185429,0.02196,91230.0,91227.0,0.01096166]
[1767543186375,0.02196,91230.0,91225.0,0.06568257]
[1767543186581,0.02196,91230.0,91226.0,0.01096178]
[1767543186733,0.02196,91230.0,91227.0,0.01096166]
[1767543186938,0.02196,91230.0,91227.0,0.0657699]
[1767543187545,0.02196,91230.0,91227.0,0.01096166]
[1767543187903,0.02196,91230.0,91226.0,0.06572584]